Cogmind - Beta 17 @@@ ROGUE MODE // 2026.07.23 @ 15:24:44 Player: V1-Dll Result: Destroyed by D-53 Grenadier with Mini Grenade Launcher Performance ------------- Evolutions (0) 0 Regions Visited (2) 400 Robots Destroyed (29) 145 Value Destroyed (456) 456 Prototype IDs (0) 0 Alien Tech Used (0) 0 Bonus (0) 0 TOTAL SCORE: 1001 Bonus ------- None Cogmind --------- Core Integrity 0/250 Matter 285/300 Energy 100/100 System Corruption 0% Temperature Cool (0) Movement Core (100) Ox1 Location -10/Mines Parts ------- > --- POWER (1) -------- (None) > --- PROPULSION (2) --- (None) > --- UTILITY (2) ------ Small Storage Unit > --- WEAPON (2) ------- (None) > --- INVENTORY (8) ---- Ion Engine Light Treads Light Treads Wheel Medium Matter Pod (100) Beam Cannon Light Assault Rifle Makeshift Shrapnel Gun Peak State ------------ > --- POWER ------------ (None) > --- PROPULSION ------- Light Treads Light Treads > --- UTILITY ---------- Small Storage Unit Structural Scanner > --- WEAPON ----------- Assault Rifle Makeshift Shrapnel Gun > --- INVENTORY -------- Ion Engine Light Treads Light Treads Wheel Medium Matter Pod Beam Cannon Light Assault Rifle Grenade Launcher [Rating: 9] Favorites ----------- Power Light Ion Engine Engine Light Ion Engine Propulsion Light Treads Treads Light Treads Utility Small Storage Unit Device Structural Scanner Storage Small Storage Unit Weapon Assault Rifle Ballistic Gun Assault Rifle Launcher Grenade Launcher Build | -11 -10 -10 ------- Run | Yrd Mat Min Slots Evolved . | . . . Power . | . . . Propulsion . | . . . Utility . | . . . Weapon . | . . . Parts Attached 9 | 6 2 1 Power 1 | 1 . . Engine 1 | 1 . . Core . | . . . Reactor . | . . . Propulsion 2 | 2 . . Treads 2 | 2 . . Leg . | . . . Wheel . | . . . Hover . | . . . Flight . | . . . Utility 2 | 1 1 . Device 1 | . 1 . Storage 1 | 1 . . Processor . | . . . Hackware . | . . . Protection . | . . . Artifact . | . . . Weapon 4 | 2 1 1 Energy Gun . | . . . Energy Cannon . | . . . Ballistic Gun 3 | 2 . 1 Ballistic Cannon . | . . . Launcher 1 | . 1 . Special Weapon . | . . . Impact Weapon . | . . . Slashing Weapon . | . . . Piercing Weapon . | . . . Special Melee Weapon . | . . . Unidentified Prototypes . | . . . Parts Lost 6 | . 1 5 Power 1 | . 1 . Propulsion 2 | . . 2 Utility 1 | . . 1 Weapon 2 | . . 2 Highest Loss Streak 5 | . 1 5 To Critical Strikes . | . . . Average Backups 6 | . 6 7 Power . | . . 1 Propulsion 2 | . 2 3 Utility . | . . 1 Weapon 2 | . 1 2 Tool/Special . | . . . Unused Backups 6 | . . 6 Power 1 | . . 1 Propulsion 3 | . . 3 Utility 1 | . . 1 Weapon 1 | . . 1 Tool/Special . | . . . Average Slot Usage (%) 84 | . 85 83 Engine 8 | . 12 . Treads 27 | . 28 27 Device 5 | . 1 13 Storage 14 | . 14 14 Ballistic Gun 23 | . 26 19 Launcher 3 | . 1 7 Peak Build Rating 9 | 6 7 9 Average Rating 6 | 4 6 7 On Entrance 4 | . 6 6 Avg Prop Armor Cover (%) . | . . . Naked Turns . | . . . Heaviest Build 13 | 11 13 11 Greatest Support 40 | 40 40 40 Greatest Overweight (x) 2 | . . 2 Average Overweight (x) . | . . . Largest Inventory Capacity 8 | 8 8 8 Average Capacity 7 | 6 8 8 Most Carried 8 | 1 7 8 Average Carried 6 | . 6 7 Final Capacity 8 | 8 8 8 Final Carried 8 | 1 7 8 Class Distribution -------------------- 100% | Mutant Dominant Class ---------------- Mutant | -10/Materials Mutant | -10/Mines Resources | -11 -10 -10 ----------- Run | Yrd Mat Min Matter Collected 829 | 256 436 137 Remotely . | . . . Salvage Created 695 | . 572 123 Parts 51 | . 44 7 Haulers Intercepted 2 | . 2 . Recyclers Shooed . | . . . Parts Field Recycled . | . . . Retrieved Matter . | . . . Parts Self-Destructed . | . . . Prevented . | . . . Parts Restored . | . . . Kills | -11 -10 -10 ------- Run | Yrd Mat Min Combat Hostiles Destroyed 20 | . 17 3 Guns 14 | . 11 3 AOE 6 | . 6 . Classes Destroyed 7 | . 6 1 Worker 2 | . 2 . Builder 2 | . 2 . Hauler 2 | . 2 . Recycler 1 | . . 1 Watcher 2 | . 2 . Swarmer 12 | . 9 3 Grunt 8 | . 8 . Best Kill Streak 5 | . 5 4 Combat Bots Only 3 | . 3 3 Max Kills in Single Turn 2 | . 2 1 Gunslinging . | . . . Exploded 2 | . 2 . Melee . | . . . Uniques/NPCs Destroyed . | . . . Combat | -11 -10 -10 -------- Run | Yrd Mat Min Hostile Shots Fired 75 | . 56 19 Missed 22 | . 19 3 Hits 53 | . 37 16 Projectile 53 | . 37 16 AOE 10 | . . 10 Damage Taken 839 | . 430 409 Core 255 | . 83 172 Absorbed by Shields . | . . . Core Remaining (%) 100 | 100 . . Volleys Fired 66 | . 57 9 Largest 2 | . 2 2 Hottest 50 | . 50 44 Shots Fired 129 | . 114 15 Gun 113 | . 101 12 Cannon . | . . . Launcher 16 | . 13 3 Special . | . . . Kinetic 113 | . 101 12 Thermal . | . . . Explosive 16 | . 13 3 Electromagnetic . | . . . Robot Hit Streak 12 | . 12 2 Robot Miss Streak 3 | . 3 3 Penetration Max . | . . . Secondary Targets 1 | . 1 . Max Gunslinging Chain 1 | . 1 . Shots Hit Robots 80 | . 71 9 Core Hits 50 | . 43 7 Critical Kills . | . . . Critical Parts Destroyed 1 | . 1 . Critical Strikes 1 | . 1 . Destroy 1 | . 1 . Melee Attacks . | . . . Impact . | . . . Slashing . | . . . Piercing . | . . . Sneak Attacks . | . . . Combat Hostiles . | . . . Follow-up Attacks . | . . . Damage Inflicted 1620 | . 1492 128 Guns 796 | . 683 113 Cannons . | . . . Explosions 809 | . 809 . Melee . | . . . Ramming 15 | . . 15 Kinetic 796 | . 683 113 Thermal . | . . . Explosive 809 | . 809 . Electromagnetic . | . . . Impact . | . . . Slashing . | . . . Piercing . | . . . Highest Corruption . | . . . Average Corruption . | . . . Corruption Purged . | . . . Corruption Blocked . | . . . Overload Shots . | . . . Overflow Damage 37 | . 37 . Projectiles . | . . . Explosions 37 | . 37 . Melee . | . . . Knockbacks . | . . . Impact . | . . . Kinetic . | . . . Secondary . | . . . Self-Inflicted Damage 69 | . 69 . Shots 4 | . 4 . Rammed 5 | . . 5 Targets Rammed 5 | . . 5 Kicked . | . . . Crushed . | . . . Highest Temperature 12 | . 12 . Average Temperature 6 | . 6 . Received Heat Transfer 150 | . 150 . Siege Activations . | . . . Martial Activations . | . . . Shielding Activations . | . . . Robots Disrupted . | . . . Combat Hostiles . | . . . Robots Corrupted . | . . . Combat Hostiles . | . . . Parts Fried . | . . . Impact Corruptions . | . . . Robots Melted . | . . . Combat Hostiles . | . . . Parts Melted . | . . . Heat Transferred . | . . . Parts Sabotaged . | . . . Parts Stolen . | . . . Parts Stripped . | . . . Power Chain Reactions . | . . . Alert | -11 -10 -10 ------- Run | Yrd Mat Min Maximum Alert Level . | . . . Low Security (%) 100 | 100 100 100 Level 1 . | . . . Level 2 . | . . . Level 3 . | . . . Level 4 . | . . . Level 5 . | . . . High Security . | . . . Max Security . | . . . Peak Influence 168 | . 168 76 Initial 39 | . . 39 Average 59 | . 89 14 Influence Increases 661 | . 541 120 Destroy 0b10 Robot/C 400 | . 340 60 Destroy 0b10 Robot/NC 45 | . 40 5 Destroy Leader 78 | . 68 10 Allied During Kill 11 | . . 11 Successful Hack 14 | . 9 5 Disable Machine 15 | . 15 . Destroy Structure 68 | . 54 14 Lose Combat Pursuer 30 | . 15 15 Influence Decreases 661 | . 438 223 Entered New Map 64 | . . 64 Time Decay 566 | . 428 138 Lost Part 31 | . 10 21 Squads Dispatched 3 | . 3 . Investigation . | . . . Extermination . | . . . Reinforcement 3 | . 3 . Assault . | . . . Garrison . | . . . Intercept . | . . . Searches Triggered . | . . . Construction Impeded . | . . . Haulers Reinforced . | . . . Active Scanning Responses . | . . . Cargo Convoy Interrupts . | . . . Stealth | -11 -10 -10 --------- Run | Yrd Mat Min Distress Signals 3 | . 2 1 Communications Jammed . | . . . Distress Signals . | . . . Times Spotted 31 | . 25 6 Peak Tracking Total 5 | . 5 3 Tactical Retreats 2 | . 1 1 Traps | -11 -10 -10 ------- Run | Yrd Mat Min Traps Triggered . | . . . Indirectly . | . . . Trap Hack Attempts . | . . . Triggered . | . . . Disarmed . | . . . Reprogrammed . | . . . Reused . | . . . Traps Extracted . | . . . Installed . | . . . Triggered . | . . . Machines | -11 -10 -10 ---------- Run | Yrd Mat Min Machines Disabled 1 | . 1 . Max in Single Turn 1 | . 1 . Machines Repaired . | . . . Machines Dismantled . | . . . Machines Sabotaged . | . . . Overloaded Fab Kills . | . . . Hacking | -11 -10 -10 --------- Run | Yrd Mat Min Machines Accessed 4 | . 3 1 Terminals 4 | . 3 1 Fabricators . | . . . Repair Stations . | . . . Recycling Units . | . . . Scanalyzers . | . . . Garrison Access . | . . . Total Hacks 10 | . 9 1 Successful 3 | . 2 1 Failed 7 | . 7 . Catastrophic 1 | . 1 . Database Lockouts . | . . . Manual 9 | . 9 . Terminals 10 | . 9 1 Fabricators . | . . . Repair Stations . | . . . Recycling Units . | . . . Scanalyzers . | . . . Garrison Access . | . . . Terminal Hacks 1 | . . 1 Zone Layout 1 | . . 1 Fabricator Hacks . | . . . Repair Station Hacks . | . . . Recycling Unit Hacks . | . . . Scanalyzer . | . . . Garrison Access Hacks . | . . . Unauthorized Hacks 2 | . 2 . Terminals 2 | . 2 . Botnet 2 | . 2 . Fabricators . | . . . Repair Stations . | . . . Recycling Units . | . . . Scanalyzers . | . . . Garrison Access . | . . . Data Cores Recovered . | . . . Used . | . . . Hacking Detections 3 | . 3 . Full Trace Events . | . . . Feedback Events . | . . . Feedback Blocked . | . . . Robot Schematics Acquired . | . . . Robots Built . | . . . Authchips . | . . . Time . | . . . Total Robot Build Rating . | . . . Part Schematics Acquired . | . . . Parts Built . | . . . Authchips . | . . . Time . | . . . Total Part Build Rating . | . . . Part Studies Acquired . | . . . Parts Repaired . | . . . Time . | . . . Parts Recycled . | . . . Recycled Matter . | . . . Retrieved Matter . | . . . Retrieved Components . | . . . Parts Scanalyzed . | . . . Part Schematics Acquired . | . . . Parts Damaged . | . . . Bothacking | -11 -10 -10 ------------ Run | Yrd Mat Min Used RIF Installer . | . . . Robots Hacked . | . . . Non-combat . | . . . Combat . | . . . Robot Hacks Applied . | . . . Relay Couplers Released . | . . . Fabnet Peak Effective % . | . . . Robots Rewired . | . . . Allies Hacked . | . . . Hacks Repelled . | . . . Allies | -11 -10 -10 -------- Run | Yrd Mat Min Total Allies 3 | . . 3 Largest Group 3 | . . 3 Highest-Rated Group 40 | . . 40 Highest-Rated Ally 16 | . . 16 Total Orders . | . . . Ally Attacks 1 | . . 1 Total Damage . | . . . Kills . | . . . Allies Corrupted . | . . . Allies Melted . | . . . Intel | -11 -10 -10 ------- Run | Yrd Mat Min Active Infowar (turns) 769 | . 89 680 Structural 769 | . 89 680 Robot Analysis Total . | . . . Derelict Logs Recovered 1 | . . 1 Drone Launches . | . . . Drone Recoveries . | . . . Exploration | -11 -10 -10 ------------- Run | Yrd Mat Min Turns Passed 1910 | 65 1151 694 Spaces Moved 957 | 36 535 386 Core 11 | 1 . 10 Treads 946 | 35 535 376 Legs . | . . . Wheels . | . . . Hover . | . . . Flight . | . . . Fastest Speed 50 | 50 160 100 Average Speed 159 | 156 160 158 Slowest Speed 160 | 160 160 160 Overloaded Moves . | . . . Propulsion Burnouts . | . . . Robots Hopped . | . . . Potential Cave-ins . | . . . Cave-ins Triggered . | . . . Exploration Rate (%) 60 | 4 89 87 Regions Visited 2 Branch Regions 1 Pre-discovered Areas . | . . . Known Exits Taken . | . . . Unknown Exits Taken 2 | 1 1 . Scrap Searched . | . . . Spaces Dug . | . . . Terrain Destroyed 84 | . 64 20 Melee . | . . . Projectile . | . . . AOE 84 | . 64 20 Terrain Rammed . | . . . Walls Destroyed . | . . . Machines Disabled . | . . . Actions | -11 -10 -10 --------- Run | Yrd Mat Min Total 1211 | 42 721 448 Wait 161 | . 116 45 Move 955 | 35 534 386 Hop . | . . . Pick Up 8 | 1 6 1 Fast Attach 7 | 6 1 . Attach . | . . . Detach . | . . . Swap 9 | . 7 2 Drop . | . . . Fire 66 | . 57 9 Melee . | . . . Ram . | . . . Kick . | . . . Crush 5 | . . 5 Escape Stasis . | . . . Rewire . | . . . Trap . | . . . Miscellaneous . | . . . Route ------- -11/Scrapyard -10/Materials (discovered 4 exits: [*Mat] / *Min x2 / [*Sub]) -10/Mines (discovered 3 exits: [*Mat x2] / [*Sub]) History --------- Turn | Location | Event 18 | -11/Scrapyard | Discovered new exit (range 15) 66 | -11/Scrapyard | Entered Materials 310 | -10/Materials | Build established: Mutant 377 | -10/Materials | Discovered new exit (range 16) 650 | -10/Materials | Discovered new exit (range 12) 717 | -10/Materials | Discovered new exit (range 7) 874 | -10/Materials | Discovered new exit (range 13) 1217 | -10/Materials | Entered Mines 1269 | -10/Mines | Met a Derelict bent on vengeance 1296 | -10/Mines | Assisted by bots powering up and referring to "LRC-V3" 1333 | -10/Mines | A weapon hastily lodged in a ceiling crevice suddenly fell to the ground 1425 | -10/Mines | Discovered new exit (range 9) 1441 | -10/Mines | Discovered new exit (range 8) 1599 | -10/Mines | Learned 4 Materials zone layouts 1782 | -10/Mines | Discovered new exit (range 7) 1787 | -10/Mines | Assembled infested the area 1823 | -10/Mines | Lost 3 allies 1901 | -10/Mines | Core integrity fell below 50% 1905 | -10/Mines | Core integrity fell below 20% 1911 | -10/Mines | Destroyed by D-53 Grenadier with Mini Grenade Launcher Last Messages --------------- 01854_ U-05 Engineer lays Concrete. 01855_ U-05 Engineer builds a Wall. 01856_ Slammed into U-05 Engineer. 01859_ K-01 Serf collects debris. 01859_ U-05 Engineer sends out distress signal. 01861_ Slammed into U-05 Engineer. 01862_ K-01 Serf collects debris. 01893_ The unstable cave ceiling collapses. 01894_ K-01 Serf collects debris. 01896_ K-01 Serf destroyed. 01897_ Structural Scanner destroyed. 01898_ The unstable cave ceiling collapses. 01898_ Lgt. Treads destroyed. 01898_ Assault Rifle destroyed. 01899_ U-05 Engineer lays Concrete. 01899_ Lgt. Treads destroyed. 01900_ U-05 Engineer lays Concrete. 01900_ Grenade Launcher destroyed. 01903_ K-01 Serf collects debris. 01911_ The unstable cave ceiling collapses. Map ----- +----------------------------------------------------+ | # ####?## #### ##??????## ???? # | | # #####?## ### ##??????## ????? # | | ? ###???### ### ##??????###????? # | | # ##?????## ##??????###????? ## | | # ##?????### ##############???????"#### ### | | ##?????#### ################???????#### #### # | | ####??????### ###???#### ####????????## ##### # | | ####???????## ######### #####??????## ##### # | | ???????????## ######## ############ ##### # | | ???????????## """ ########## # | | ???????????############ """ *=######### # | | ???????????############ """ #####=######### # | | ???????????????????### #####[#####??## # | | ??????????????????### ### ###?## #####??## # | | #?????????????????## ##########?##==[ ##??## # | | #???????????????? ################ ###### # | | ######???????????#### ##??????######## ###### # | | ######???????????###### ###????### ## | | # ##?????????????#### ###???## ######### | | # #####????????????## ?????## # # ######## | | # ######?????######## ##??## ######### | | # # ###?????######## ##### # # | | ##?????## # #### < ## # | | ##?????## # ## d % ####### | | ######### d %!%%% | | ########## """ ## @ # ###### | | ###### """ ## # | | ## ##### """ ### | | ## #### #### # # ## ## ###### | | ## #### """ ####### ## ### #### ##### ######? | | ## ### """ ## ### ##?##### ##### ###???? | | ## """ #### ###????## ##?## ##????? | | ##### ################## ##### ##????? | | #### ### ################## ##### ##????? | | ####### ###?????## ##????? | | ######### ###????## ###############????? | | #### ###???### ##????## ###############????? | | #### ##???????? ##????## ##?????????????????? | | ##????????? ##????## ##?????????????????? | | ##????????? ###????## ##?????????????????? | | ###### ##?????????####????## ##?????????????????? | | ##########?????????????????## ##?????????????????? | | ###??#####?????????????????## ##?????????????????? | | ##????????????????????????? # ?????????????????? | | ???????????????????????????#####?????????????????? | | ???????????????????????????#####?????????????????? | | ?????????????????????????????????????????????????? | | ?????????????????????????????????????????????????? | | ?????????????????????????????????????????????????? | | ?????????????????????????????????????????????????? | +----------------------------------------------------+ Best States ------------- Heat Dissipation 25 Energy Generation 10 Energy Capacity 125 Matter Stores 300 Matter Capacity 300 Sight Range 16 Terrain Scan Density 10 Evasion (%) 40 Recoil Reduction 2 Item Schematics ----------------- None Robot Schematics ------------------ None Fabricated ------------ Nothing Repaired ---------- Nothing Studied --------- None Alien Tech Used ----------------- None Achievements -------------- None Challenges ------------ None Game ------ Seed RiotRestorationCanceller Manual? 0 Play Time 00:12:57 Cumulative 337.4 hours Start 2026.07.23 @ 15:14:40 End 2026.07.23 @ 15:24:44 Sessions 1 Manual Loads 0 Difficulty Rogue Special Mode None Game No. 190 Rogue 116 Adventurer 74 Explorer 0 Win Type - Total 17 Types 14/0/0/3/0/0/0/0/0/0 Lore% 72 Gallery% 66 Achievement% 50 Wizard Run 0 Options --------- Layout 2 ASCII 0 Keyboard 0 Movement Mouse Keybinds 0 Fullscreen 1 Font 32/SmallcapsGlow Map View 50x44 Zoom Use 0% Tactical HUD 1 Map Filters NONE Filters NONE Steam 1 RUN: 56167808-861d-4d2b-8ff2-8bcc21abf681